[Event "EYTCC U12 Girls 2018"]
[Site "Bad Blankeburg"]
[Date "2018.07.15"]
[Round "6"]
[White "Pentcheff, Laura"]
[Black "Markus, Molli Amina"]
[Result "1/2-1/2"]
[ECO "D02"]
[WhiteElo "1594"]
[BlackElo "1566"]
[Annotator "NA"]
[PlyCount "95"]
[EventDate "2018.07.12"]
[EventType "swiss"]
[EventCountry "GER"]
[SourceTitle "playchess.com"]
[Source "ChessBase"]
[SourceQuality "1"]
[TimeControl "40/5400+30:1800+30"]

1. d4 {[%emt 0:00:00]} d5 {[%emt 0:00:00]} 2. Nf3 {[%emt 0:00:00]} Nf6 {[%emt 0:00:21]} 3. g3 {[%emt 0:00:00]} e6 {[%emt 0:00:50]} 4. Bg2 {[%emt 0:00:08]} c5 {[%emt 0:00:51]} 5. O-O {[%emt 0:00:15]} Nc6 {[%emt 0:00:55]} 6. e3 {[%emt 0:05:06]} Bd7 {[%emt 0:01:30]} 7. c4 {[%emt 0:01:20]} cxd4 {[%emt 0:03:26]} 8. Nxd4 {[%emt 0:01:42]} Nxd4 {[%emt 0:03:18]} 9. Qxd4 {[%emt 0:01:13]} Bc6 {[%emt 0:02:31]} 10. Nc3 {[%emt 0:01:26]} Bb4 {[%emt 0:09:41]} 11. Rd1 {[%emt 0:06:49]} Bxc3 {[%emt 0:01:20]} 12. Qxc3 {[%emt 0:00:31]} Qc8 {[%emt 0:01:47]} 13. b3 {[%emt 0:02:03]} dxc4 {[%emt 0:02:16]} 14. Qxc4 {[%emt 0:01:08]} Bxg2 {[%emt 0:01:17]} 15. Qxc8+ {[%emt 0:00:47]} Rxc8 {[%emt 0:00:06]} 16. Kxg2 {[%emt 0:00:44]} O-O {[%emt 0:00:54]} 17. Bb2 {[%emt 0:19:35]} Ne4 {[%emt 0:03:39]} 18. Rac1 {[%emt 0:00:53]} Rxc1 {[%emt 0:01:49]} 19. Rxc1 {[%emt 0:00:35]} h6 {[%emt 0:05:06]} 20. Rc7 {[%emt 0:02:35]} b5 {[%emt 0:03:24]} 21. Rxa7 {[%emt 0:03:04]} Rc8 {[%emt 0:02:00]} 22. Bd4 {[%emt 0:28:27]} Rc2 {[%emt 0:01:52]} 23. a4 {[%emt 0:09:41]} bxa4 {[%emt 0:01:29]} 24. bxa4 {[%emt 0:00:06]} Rxf2+ {[%emt 0:00:37]} 25. Kh3 {[%emt 0:01:39]} Ng5+ {[%emt 0:02:18]} 26. Kg4 {[%emt 0:00:31]} Kh7 {[%emt 0:12:47]} 27. h4 {[%emt 0:01:33]} Ne4 {[%emt 0:02:25]} 28. a5 {[%emt 0:04:06]} h5+ {[%emt 0:09:24]} 29. Kh3 {[%emt 0:02:48]} Nd2 {[%emt 0:07:35]} 30. Rb7 {[%emt 0:02:57]} Nf1 {[%emt 0:00:48]} 31. Rb2 {[%emt 0:00:16]} Rf5 {[%emt 0:02:16]} 32. Ra2 {[%emt 0:00:36]} Rf3 {[%emt 0:04:45]} 33. Rg2 {[%emt 0:00:27]} Nxe3 {[%emt 0:01:44]} 34. Bxe3 {[%emt 0:00:20]} Rxe3 {[%emt 0:00:05]} 35. Ra2 {[%emt 0:00:09]} Rb3 {[%emt 0:00:24]} 36. a6 {[%emt 0:00:25]} Rb8 {[%emt 0:00:04]} 37. a7 {[%emt 0:00:09]} Ra8 {[%emt 0:00:04]} 38. g4 {[%emt 0:00:36]} hxg4+ {[%emt 0:00:29]} 39. Kxg4 {[%emt 0:00:05]} Kg6 {[%emt 0:00:31]} 40. Kf4 {[%emt 0:00:57]} Kh5 {[%emt 0:00:41]} 41. Ke5 {[%emt 0:30:19]} Kxh4 {[%emt 0:30:29]} 42. Kd6 {[%emt 0:00:17]} g5 {[%emt 0:00:25]} 43. Ra4+ {[%emt 0:00:12]} Kh3 {[%emt 0:00:51]} 44. Ra3+ {[%emt 0:00:06]} Kh4 {[%emt 0:00:17]} 45. Ra4+ {[%emt 0:00:04]} Kh3 {[%emt 0:00:06]} 46. Ra3+ {[%emt 0:00:18]} Kh4 {[%emt 0:03:46]} 47. Ra4+ {[%emt 0:00:07]} Kh3 {[%emt 0:00:07]} 48. Ke5 1/2-1/2

[Event "EYTCC U12 Girls 2018"]
[Site "Bad Blankeburg"]
[Date "2018.07.15"]
[Round "6"]
[White "Voriskova, Anna"]
[Black "Lorenz, Anouk"]
[Result "1-0"]
[ECO "B28"]
[WhiteElo "1569"]
[BlackElo "1390"]
[Annotator "NA"]
[PlyCount "117"]
[EventDate "2018.07.12"]
[EventType "swiss"]
[EventCountry "GER"]
[SourceTitle "playchess.com"]
[Source "ChessBase"]
[SourceQuality "1"]
[TimeControl "40/5400+30:1800+30"]

1. e4 {[%emt 0:00:00]} c5 {[%emt 0:00:00]} 2. Nf3 {[%emt 0:00:00]} a6 {[%emt 0:00:00]} 3. d4 {[%emt 0:03:25]} cxd4 {[%emt 0:00:10]} 4. Nxd4 {[%emt 0:00:48]} e5 {[%emt 0:01:35]} 5. Nf3 {[%emt 0:03:03]} Nf6 {[%emt 0:01:33]} 6. Bd3 {[%emt 0:06:16]} Bb4+ {[%emt 0:10:57]} 7. Bd2 {[%emt 0:04:46]} Nc6 {[%emt 0:19:15]} 8. O-O {[%emt 0:07:53]} Bxd2 {[%emt 0:02:55]} 9. Qxd2 {[%emt 0:07:21]} O-O {[%emt 0:12:17]} 10. Nc3 {[%emt 0:03:53]} d5 {[%emt 0:02:56]} 11. exd5 {[%emt 0:09:11]} Nxd5 {[%emt 0:00:40]} 12. Nxd5 {[%emt 0:00:28]} Bg4 {[%emt 0:07:29]} 13. Ne1 {[%emt 0:08:42]} f5 {[%emt 0:02:09]} 14. Ne3 {[%emt 0:01:12]} Kh8 {[%emt 0:02:49]} 15. Nxg4 {[%emt 0:04:12]} fxg4 {[%emt 0:02:33]} 16. Qe3 {[%emt 0:04:18]} Qc7 {[%emt 0:06:57]} 17. h3 {[%emt 0:02:52]} gxh3 {[%emt 0:00:32]} 18. Qxh3 {[%emt 0:00:23]} h6 {[%emt 0:00:37]} 19. Be4 {[%emt 0:07:59]} Nd4 {[%emt 0:02:32]} 20. Qe3 {[%emt 0:03:24]} Rf4 {[%emt 0:04:38]} 21. Nf3 {[%emt 0:04:03]} Rd8 {[%emt 0:04:07]} 22. Nxd4 {[%emt 0:01:41]} exd4 {[%emt 0:02:13]} 23. Qd3 {[%emt 0:02:16]} Rh4 {[%emt 0:02:41]} 24. f4 {[%emt 0:02:29]} Rxf4 {[%emt 0:01:51]} 25. Rxf4 {[%emt 0:00:17]} Qxf4 {[%emt 0:00:07]} 26. Qf3 {[%emt 0:00:47]} Qxf3 {[%emt 0:02:20]} 27. Bxf3 {[%emt 0:00:09]} b5 {[%emt 0:00:27]} 28. Re1 {[%emt 0:00:35]} Kg8 {[%emt 0:01:04]} 29. Re6 {[%emt 0:00:24]} Rc8 {[%emt 0:00:56]} 30. Be4 {[%emt 0:00:25]} a5 {[%emt 0:00:47]} 31. Rd6 {[%emt 0:01:25]} d3 {[%emt 0:02:20]} 32. Bxd3 {[%emt 0:00:17]} b4 {[%emt 0:00:20]} 33. Be4 {[%emt 0:01:16]} Re8 {[%emt 0:01:06]} 34. Bd3 {[%emt 0:01:02]} Kf8 {[%emt 0:01:33]} 35. Kf2 {[%emt 0:01:24]} Re5 {[%emt 0:00:56]} 36. Rb6 {[%emt 0:00:23]} Ke7 {[%emt 0:00:30]} 37. Rb5 {[%emt 0:02:38]} Re6 {[%emt 0:01:15]} 38. Rxa5 {[%emt 0:00:28]} Rf6+ {[%emt 0:00:51]} 39. Kg3 {[%emt 0:00:47]} Kf8 {[%emt 0:00:30]} 40. Rb5 {[%emt 0:00:07]} b3 {[%emt 0:00:22]} 41. Rxb3 {[%emt 0:30:22]} g5 {[%emt 0:30:16]} 42. Bc4 {[%emt 0:01:28]} Rf4 {[%emt 0:00:58]} 43. Rf3 {[%emt 0:00:10]} Rxf3+ {[%emt 0:00:13]} 44. Kxf3 {[%emt 0:00:05]} Ke7 {[%emt 0:00:06]} 45. Kg4 {[%emt 0:00:11]} Kf6 {[%emt 0:00:09]} 46. a4 {[%emt 0:00:04]} h5+ {[%emt 0:00:32]} 47. Kxh5 {[%emt 0:00:04]} g4 {[%emt 0:00:12]} 48. a5 {[%emt 0:00:05]} g3 {[%emt 0:00:07]} 49. a6 {[%emt 0:00:04]} Ke5 {[%emt 0:00:19]} 50. a7 {[%emt 0:00:09]} Kd6 {[%emt 0:00:11]} 51. a8=Q {[%emt 0:00:18]} Ke5 {[%emt 0:00:19]} 52. Qd5+ {[%emt 0:00:11]} Kf4 {[%emt 0:00:28]} 53. b4 {[%emt 0:00:29]} Ke3 {[%emt 0:00:30]} 54. b5 {[%emt 0:00:09]} Kf4 {[%emt 0:00:11]} 55. b6 {[%emt 0:00:04]} Ke3 {[%emt 0:00:18]} 56. b7 {[%emt 0:00:09]} Kf2 {[%emt 0:01:04]} 57. b8=Q {[%emt 0:00:23]} Kg1 {[%emt 0:01:39]} 58. Qxg3 {[%emt 0:01:16]} Kh1 {[%emt 0:00:35]} 59. Qd1# {[%emt 0:00:04]} 1-0

[Event "EYTCC U12 Girls 2018"]
[Site "Bad Blankeburg"]
[Date "2018.07.16"]
[Round "7"]
[White "Bashylina, Luisa"]
[Black "Gaal, Zsoka"]
[Result "1/2-1/2"]
[ECO "B06"]
[WhiteElo "1836"]
[BlackElo "2044"]
[Annotator "NA RC"]
[PlyCount "65"]
[EventDate "2018.07.12"]
[EventType "swiss"]
[EventCountry "GER"]
[SourceTitle "playchess.com"]
[Source "ChessBase"]
[SourceQuality "1"]
[TimeControl "40/5400+30:1800+30"]

{[%evp 10,65,25,-21,6,10,7,-22,37,-12,-15,32767,32767,32767,32767,32767,32767,32767,32767,32767,-13,32767,53,32767,32767,10,32767,32767,11,0,1,5,32767,32767,32767,32767,32767,-27,-28,32767,32767,32767,32767,-56,0,-19,-39,32767,0,0,32767,0,32767,32767,32767,32767,32767,0]} 1. e4 {[%emt 0:00:00]} g6 {[%emt 0:00:00]} 2. d4 {[%emt 0:00:00]} Bg7 {[%emt 0:00:12]} 3. Nc3 {[%emt 0:00:00]} c6 {[%emt 0:00:15]} 4. Bc4 {[%emt 0:01:34]} d6 {[%emt 0:02:03]} 5. Qf3 {[%emt 0:03:50]} e6 {[%emt 0:01:59] B06: Modern Defence} 6. d5 {[%emt 0:02:59]} (6. Nge2 Nd7 7. O-O b5 8. Bb3 a5 9. a3 Ba6 10. Re1 Ngf6 11. Bf4 e5 12. dxe5 dxe5 13. Bg5 h6 14. Be3 O-O 15. Ng3 {1-0 (44) Popov,I (2599)-Bologan,V (2615) Moscow 2017}) 6... cxd5 {[%emt 0:06:10]} 7. exd5 {[%emt 0:05:26]} e5 {[%emt 0:04:05]} 8. Ne4 {[%emt 0:01:07]} Qc7 $146 {[%emt 0:08:58]} ({Lieber Predecessor:} 8... f5 $15 9. Ng5 f4 (9... Nf6 10. Ne2 O-O 11. h4 h6 12. Ne6 Bxe6 13. dxe6 {1-0 (34) Sakhnenko,S-Neporozhniy,K Kiev 2000})) 9. Qc3 {[%emt 0:04:26]} Bf5 {[%emt 0:17:47]} 10. Bb5+ {[%emt 0:07:25]} Kd8 {[%emt 0:00:45]} 11. Qxc7+ {[%emt 0:01:27]} Kxc7 {[%emt 0:00:23]} 12. Ng5 {[%emt 0:03:20]} Nh6 {[%emt 0:03:07]} 13. Be3 {[%emt 0:02:40]} Nd7 {[%emt 0:10:05]} 14. f3 {[%emt 0:04:13]} Nb6 {[%emt 0:04:10]} 15. O-O-O {[%emt 0:01:48]} Rac8 {[%emt 0:03:56]} (15... a6 $15 16. Be2 Rae8) 16. g4 {[%emt 0:01:06]} Bd7 {[%emt 0:00:39]} 17. Bxb6+ {[%emt 0:00:22]} axb6 {[%emt 0:00:26]} 18. Bxd7 {[%emt 0:00:26]} Kxd7 {[%emt 0:00:13]} 19. Rd3 {[%emt 0:01:47] [#]} Nxg4 $1 {[%emt 0:12:57]} 20. fxg4 {[%emt 0:05:23]} Bh6 {[%emt 0:01:07]} 21. h4 {[%emt 0:01:23]} f6 {[%emt 0:01:22]} 22. N1h3 {[%emt 0:00:50]} fxg5 {[%emt 0:04:50]} 23. Nxg5 {[%emt 0:00:39]} Rc4 {[%emt 0:02:31]} 24. Rg1 {[%emt 0:01:52]} Rf8 {[%emt 0:01:48]} 25. b3 {[%emt 0:01:05]} Rcf4 {[%emt 0:02:09]} 26. Kb1 {[%emt 0:03:01]} (26. a4 $11) 26... Rf1+ {[%emt 0:05:56]} 27. Rxf1 {[%emt 0:01:08]} Rxf1+ {[%emt 0:00:02]} 28. Kb2 {[%emt 0:00:15]} Bxg5 {[%emt 0:04:28]} 29. hxg5 {[%emt 0:00:07]} Rh1 {[%emt 0:00:51]} 30. Rf3 {[%emt 0:00:56]} Ke7 {[%emt 0:00:37]} 31. Rc3 {[%emt 0:00:45]} Kd7 {[%emt 0:00:35]} 32. Rf3 {[%emt 0:01:16]} Ke7 {[%emt 0:00:41]} 33. Rc3 $11 {[%emt 0:01:22]} 1/2-1/2

[Event "EYTCC U12 Girls 2018"]
[Site "Bad Blankeburg"]
[Date "2018.07.16"]
[Round "7"]
[White "Markus, Molli Amina"]
[Black "Butenandt, Svenja"]
[Result "1/2-1/2"]
[ECO "A17"]
[WhiteElo "1566"]
[BlackElo "1751"]
[Annotator "NA RC"]
[PlyCount "86"]
[EventDate "2018.07.12"]
[EventType "swiss"]
[EventCountry "GER"]
[SourceTitle "playchess.com"]
[Source "ChessBase"]
[SourceQuality "1"]
[TimeControl "40/5400+30:1800+30"]

1. c4 {[%emt 0:00:00]} e6 {[%emt 0:00:00]} 2. Nc3 {[%emt 0:00:22]} Nf6 {[%emt 0:00:00]} 3. g3 {[%emt 0:01:05]} d5 {[%emt 0:00:37]} 4. cxd5 {[%emt 0:01:30]} exd5 {[%emt 0:00:17]} 5. d4 {[%emt 0:01:15]} c6 {[%emt 0:01:35]} 6. Bg2 {[%emt 0:01:54]} Be7 {[%emt 0:03:39]} 7. e3 {[%emt 0:02:38]} Bf5 {[%emt 0:04:02]} 8. Nge2 {[%emt 0:01:54]} Na6 {[%emt 0:06:15]} 9. a3 {[%emt 0:01:56]} O-O {[%emt 0:01:53]} 10. O-O {[%emt 0:02:10]} Nc7 {[%emt 0:06:04]} 11. Bd2 {[%emt 0:07:39]} Qd7 {[%emt 0:05:08]} 12. Rc1 {[%emt 0:02:50]} Bh3 {[%emt 0:03:57]} 13. Nf4 {[%emt 0:01:59]} Bxg2 {[%emt 0:00:25]} 14. Kxg2 {[%emt 0:00:17]} Ne6 {[%emt 0:09:38]} 15. Nh3 {[%emt 0:18:31]} Ne4 {[%emt 0:09:35]} 16. Nf4 {[%emt 0:08:13]} Nxf4+ {[%emt 0:02:31]} 17. exf4 {[%emt 0:00:43]} Rad8 {[%emt 0:07:40]} 18. Be3 {[%emt 0:03:28]} Qf5 {[%emt 0:05:48]} 19. f3 {[%emt 0:03:56]} Nxc3 {[%emt 0:01:53]} 20. Rxc3 {[%emt 0:00:09]} Bd6 {[%emt 0:04:36]} 21. Qc2 {[%emt 0:06:03]} Qxc2+ {[%emt 0:01:56]} 22. Rxc2 {[%emt 0:00:05]} Rfe8 {[%emt 0:01:42]} 23. Kf2 {[%emt 0:01:55]} Re7 {[%emt 0:02:03]} 24. b4 {[%emt 0:01:55]} Rde8 {[%emt 0:01:08]} 25. Re1 {[%emt 0:00:31]} Bc7 {[%emt 0:02:22]} 26. Rce2 {[%emt 0:02:41]} Bb6 {[%emt 0:00:56]} 27. Kf1 {[%emt 0:01:29]} f5 {[%emt 0:01:37]} 28. Bf2 {[%emt 0:01:43]} Rxe2 {[%emt 0:01:17]} 29. Rxe2 {[%emt 0:00:06]} Rxe2 {[%emt 0:00:32]} 30. Kxe2 {[%emt 0:00:05]} Kf7 {[%emt 0:00:26]} 31. Kd3 {[%emt 0:02:08]} Ke6 {[%emt 0:00:35]} 32. g4 {[%emt 0:02:50]} g6 {[%emt 0:01:26]} 33. h3 {[%emt 0:01:31]} a6 {[%emt 0:01:32]} 34. Bh4 {[%emt 0:00:50]} Ba7 {[%emt 0:01:26]} 35. Bd8 {[%emt 0:02:31]} Kd7 {[%emt 0:01:00]} 36. Bf6 {[%emt 0:00:46]} b6 {[%emt 0:03:12]} 37. Kc3 {[%emt 0:02:30]} c5 {[%emt 0:01:46]} 38. Be5 {[%emt 0:02:19]} c4 {[%emt 0:03:58]} 39. Bf6 {[%emt 0:01:44]} Bb8 {[%emt 0:00:43]} 40. Be5 {[%emt 0:01:41]} Bd6 {[%emt 0:00:46]} 41. Kb2 {[%emt 0:34:08]} Kc6 {[%emt 0:31:16]} 42. Kc3 {[%emt 0:03:39]} Be7 {[%emt 0:01:02]} 43. g5 {[%emt 0:00:28]} Kb5 {[%emt 0:00:58]} 1/2-1/2

[Event "EYTCC U12 Girls 2018"]
[Site "Bad Blankeburg"]
[Date "2018.07.16"]
[Round "7"]
[White "Pohle, Saskia"]
[Black "Wagner, Margarethe"]
[Result "1-0"]
[ECO "B91"]
[WhiteElo "1560"]
[BlackElo "1635"]
[Annotator "NA RC"]
[PlyCount "69"]
[EventDate "2018.07.12"]
[EventType "swiss"]
[EventCountry "GER"]
[SourceTitle "playchess.com"]
[Source "ChessBase"]
[SourceQuality "1"]
[TimeControl "40/5400+30:1800+30"]

1. e4 {[%emt 0:00:00]} c5 {[%emt 0:00:00]} 2. Nf3 {[%emt 0:00:00]} d6 {[%emt 0:00:00]} 3. d4 {[%emt 0:00:00]} cxd4 {[%emt 0:00:05]} 4. Nxd4 {[%emt 0:00:00]} Nf6 {[%emt 0:00:27]} 5. Nc3 {[%emt 0:00:00]} a6 {[%emt 0:00:46]} 6. g3 {[%emt 0:00:01]} e5 {[%emt 0:01:24]} 7. Nde2 {[%emt 0:00:05]} Be6 {[%emt 0:02:33]} 8. Bg2 {[%emt 0:00:25]} Be7 {[%emt 0:01:25]} 9. O-O {[%emt 0:00:56]} Nbd7 {[%emt 0:02:59]} 10. h3 {[%emt 0:00:27]} h6 {[%emt 0:05:11]} 11. Be3 {[%emt 0:01:02]} Nf8 {[%emt 0:03:21]} 12. Qd2 {[%emt 0:04:48]} Ng6 {[%emt 0:01:24]} 13. Nd5 {[%emt 0:07:44]} Nxd5 {[%emt 0:02:47]} 14. exd5 {[%emt 0:00:09]} Bd7 {[%emt 0:00:21]} 15. Kh2 {[%emt 0:06:15]} Rc8 {[%emt 0:04:18]} 16. f4 {[%emt 0:03:27]} Bf6 {[%emt 0:10:10]} 17. c3 {[%emt 0:06:40]} Qe7 {[%emt 0:04:54]} 18. Rae1 {[%emt 0:05:10]} O-O {[%emt 0:02:09]} 19. f5 {[%emt 0:08:36]} Nh8 {[%emt 0:01:27]} 20. Bb6 {[%emt 0:03:29]} Bg5 {[%emt 0:01:48]} 21. Qc2 {[%emt 0:01:07]} Bb5 {[%emt 0:03:43]} 22. b3 {[%emt 0:01:58]} Bxe2 {[%emt 0:04:05]} 23. Rxe2 {[%emt 0:00:08]} Qd7 {[%emt 0:01:34]} 24. c4 {[%emt 0:01:11]} Be7 {[%emt 0:02:13]} 25. f6 {[%emt 0:08:15]} gxf6 {[%emt 0:07:17]} 26. Be3 {[%emt 0:01:35]} Kg7 {[%emt 0:05:32]} 27. Qd2 {[%emt 0:00:34]} Rfd8 {[%emt 0:06:38]} 28. Bxh6+ {[%emt 0:00:33]} Kg8 {[%emt 0:00:28]} 29. Be4 {[%emt 0:01:51]} Qe8 {[%emt 0:00:45]} 30. Bf5 {[%emt 0:00:31]} Rb8 {[%emt 0:01:03]} 31. Re4 {[%emt 0:00:44]} Ng6 {[%emt 0:02:48]} 32. Rg4 {[%emt 0:00:21]} Kh8 {[%emt 0:01:10]} 33. h4 {[%emt 0:00:39]} Bf8 {[%emt 0:06:56]} 34. Bxg6 {[%emt 0:00:55]} fxg6 {[%emt 0:02:22]} 35. Rxf6 {[%emt 0:00:47]} 1-0

[Event "EYTCC U12 Girls 2018"]
[Site "Bad Blankeburg"]
[Date "2018.07.16"]
[Round "7"]
[White "Ulrich, Helena Irene"]
[Black "Nguyen, Jenny Ha-Linh"]
[Result "1-0"]
[ECO "C00"]
[WhiteElo "1249"]
[BlackElo "1354"]
[Annotator "NA RC"]
[PlyCount "61"]
[EventDate "2018.07.12"]
[EventType "swiss"]
[EventCountry "GER"]
[SourceTitle "playchess.com"]
[Source "ChessBase"]
[SourceQuality "1"]
[TimeControl "40/5400+30:1800+30"]

1. e4 {[%emt 0:00:00]} e6 {[%emt 0:00:00]} 2. Nf3 {[%emt 0:00:00]} d5 {[%emt 0:00:00]} 3. e5 {[%emt 0:00:05]} c5 {[%emt 0:00:03]} 4. b4 {[%emt 0:00:22]} c4 {[%emt 0:00:07]} 5. a3 {[%emt 0:00:57]} Bd7 {[%emt 0:02:53]} 6. d3 {[%emt 0:04:09]} cxd3 {[%emt 0:04:11]} 7. cxd3 {[%emt 0:00:18]} Nc6 {[%emt 0:01:41]} 8. d4 {[%emt 0:04:50]} a6 {[%emt 0:01:48]} 9. Nbd2 {[%emt 0:06:02]} f6 {[%emt 0:02:18]} 10. Bd3 {[%emt 0:09:06]} Qc7 {[%emt 0:01:40]} 11. Bb2 {[%emt 0:01:37]} fxe5 {[%emt 0:01:46]} 12. dxe5 {[%emt 0:02:29]} Nge7 {[%emt 0:01:44]} 13. O-O {[%emt 0:02:48]} Nf5 {[%emt 0:00:43]} 14. Rc1 {[%emt 0:08:31]} Qb6 {[%emt 0:02:32]} 15. Nb3 {[%emt 0:03:19]} Be7 {[%emt 0:00:33]} 16. Bxf5 {[%emt 0:10:52]} exf5 {[%emt 0:00:19]} 17. Qxd5 {[%emt 0:00:17]} Qb5 {[%emt 0:03:56]} 18. Qxb5 {[%emt 0:01:17]} axb5 {[%emt 0:00:08]} 19. Nc5 {[%emt 0:02:41]} Bxc5 {[%emt 0:00:56]} 20. Rxc5 {[%emt 0:00:46]} O-O {[%emt 0:00:30]} 21. Rxb5 {[%emt 0:06:25]} Rab8 {[%emt 0:01:38]} 22. Rd5 {[%emt 0:02:11]} Be6 {[%emt 0:01:12]} 23. Rd6 {[%emt 0:01:26]} Rfe8 {[%emt 0:00:38]} 24. Ng5 {[%emt 0:05:20]} Bc4 {[%emt 0:00:53]} 25. Rc1 {[%emt 0:05:26]} Nxe5 {[%emt 0:01:04]} 26. Bxe5 {[%emt 0:00:14]} Rxe5 {[%emt 0:00:09]} 27. f4 {[%emt 0:00:46]} Re3 {[%emt 0:05:23]} 28. Rxc4 {[%emt 0:00:34]} Rxa3 {[%emt 0:00:19]} 29. Rcd4 {[%emt 0:01:03]} Raa8 {[%emt 0:00:19]} 30. Rd7 {[%emt 0:02:09]} h6 {[%emt 0:00:43]} 31. Ne6 {[%emt 0:00:35]} 1-0

[Event "EYTCC U12 Girls 2018"]
[Site "Bad Blankeburg"]
[Date "2018.07.16"]
[Round "8"]
[White "Gaal, Zsoka"]
[Black "Fizerova, Lucie"]
[Result "1-0"]
[ECO "A46"]
[WhiteElo "2044"]
[BlackElo "1554"]
[Annotator "NA"]
[PlyCount "89"]
[EventDate "2018.07.12"]
[EventType "swiss"]
[EventCountry "GER"]
[SourceTitle "playchess.com"]
[Source "ChessBase"]
[SourceQuality "1"]
[TimeControl "40/5400+30:1800+30"]

1. d4 {[%emt 0:00:00]} Nf6 {[%emt 0:00:00]} 2. Nf3 {[%emt 0:00:00]} e6 {[%emt 0:00:01]} 3. g3 {[%emt 0:00:27]} d5 {[%emt 0:00:20]} 4. Bg2 {[%emt 0:00:35]} b5 {[%emt 0:00:50]} 5. O-O {[%emt 0:02:46]} Bb7 {[%emt 0:01:14]} 6. a4 {[%emt 0:03:38] LiveBook: 38 Games A46: 1 d4 Nf6 2 Nf3 e6: Torre, London and Colle Systems} (6. Bg5 Nbd7 7. e4 dxe4 8. Nfd2 h6 9. Bxf6 Nxf6 10. Qe2 a6 11. Nxe4 Bxe4 12. Bxe4 Nxe4 13. Qxe4 Qd5 {½-½ (62) Aronian,L (2784)-Dominguez Perez,L (2732) Skopje 2015}) 6... b4 {[%emt 0:01:56]} 7. Nbd2 {[%emt 0:08:05]} Nbd7 {[%emt 0:01:03]} 8. a5 {[%emt 0:03:29]} a6 {[%emt 0:00:51]} 9. c4 {[%emt 0:02:59]} bxc3 $146 {[%emt 0:01:13]} ({Predecessor:} 9... c5 10. Qa4 Qc7 11. cxd5 Bxd5 12. dxc5 Bxc5 13. Nb3 Bd6 14. Nfd4 Bxg2 15. Kxg2 Qb7+ {½-½ (15) Ilincic,Z (2417)-Nagy,G (2411) Kecskemet 2015}) 10. bxc3 {[%emt 0:00:19]} c5 {[%emt 0:00:50]} 11. Qa4 {[%emt 0:10:17]} Bd6 {[%emt 0:05:56]} 12. Ba3 {[%emt 0:15:08]} O-O {[%emt 0:03:20]} 13. c4 {[%emt 0:03:20]} Rc8 {[%emt 0:04:18]} 14. Rfc1 {[%emt 0:06:08]} Qe7 {[%emt 0:26:26]} 15. Rab1 {[%emt 0:09:10]} Ba8 {[%emt 0:05:07]} 16. e3 {[%emt 0:04:11]} cxd4 {[%emt 0:05:16]} 17. Bxd6 {[%emt 0:00:48]} Qxd6 {[%emt 0:00:15]} 18. exd4 {[%emt 0:05:53]} Ne4 {[%emt 0:09:08]} 19. c5 {[%emt 0:03:08]} Qc7 {[%emt 0:03:59]} 20. Nxe4 {[%emt 0:08:38]} dxe4 {[%emt 0:00:10]} 21. Ng5 {[%emt 0:00:49]} Nf6 {[%emt 0:00:53]} 22. Re1 {[%emt 0:01:15]} Nd5 {[%emt 0:09:01]} 23. Qa3 {[%emt 0:04:33]} ({Viel schwächer ist} 23. Bxe4 $6 Nc3 $16) 23... e5 {[%emt 0:03:19]} 24. dxe5 {[%emt 0:04:08]} Qxc5 {[%emt 0:00:57]} 25. Qxc5 {[%emt 0:01:05]} Rxc5 {[%emt 0:00:07]} 26. Ra1 {[%emt 0:01:02]} Nc3 {[%emt 0:02:58]} 27. Nxe4 {[%emt 0:00:39]} Nxe4 {[%emt 0:01:52]} 28. Bxe4 {[%emt 0:00:17]} Bxe4 {[%emt 0:00:09]} 29. Rxe4 {[%emt 0:00:21]} Re8 {[%emt 0:00:28]} 30. f4 {[%emt 0:00:26]} f6 {[%emt 0:01:09]} 31. e6 {[%emt 0:00:59]} g6 {[%emt 0:00:56]} 32. g4 {[%emt 0:00:44]} Kf8 {[%emt 0:01:56]} 33. Kg2 {[%emt 0:00:30]} Ke7 {[%emt 0:01:03]} 34. Rd1 {[%emt 0:00:31]} Rd8 {[%emt 0:02:35]} 35. Rxd8 {[%emt 0:00:31]} Kxd8 {[%emt 0:00:08]} 36. Kf3 {[%emt 0:00:33]} Rxa5 {[%emt 0:00:42]} 37. h4 {[%emt 0:00:26]} Ke7 {[%emt 0:00:42]} 38. Re3 {[%emt 0:00:31]} f5 {[%emt 0:01:59]} 39. gxf5 {[%emt 0:00:26]} gxf5 {[%emt 0:00:09]} 40. h5 {[%emt 0:00:33]} h6 {[%emt 0:00:22]} 41. Rc3 {[%emt 0:04:29]} Rd5 {[%emt 0:18:56]} 42. Rc7+ {[%emt 0:07:07]} Kxe6 {[%emt 0:00:49]} 43. Rh7 {[%emt 0:01:25]} Rd6 {[%emt 0:01:17]} 44. Rxh6+ {[%emt 0:00:20]} Ke7 $18 {[%emt 0:00:31]} 45. Rxd6 {[%emt 0:00:15]} 1-0